bitfinex/quotes_BTCUSD_20230106
["timestamp","ask_amount","ask_price","bid_price","bid_amount"]
[1673038305165,1.36158736,16928.0,16927.0,0.02263761]
[1673038305418,1.36087648,16928.0,16927.0,0.02263761]
[1673038305708,1.37487648,16928.0,16927.0,0.02263761]
[1673038306765,1.37487648,16928.0,16927.0,0.32263761]
[1673038307024,1.37487648,16928.0,16927.0,0.05827695]
[1673038307025,1.37558736,16928.0,16927.0,0.05827695]
[1673038307294,1.37558736,16928.0,16927.0,0.02263761]
[1673038307548,1.37558736,16928.0,16927.0,0.32263761]
[1673038308064,1.37558736,16928.0,16927.0,0.02263761]
[1673038308838,1.37558736,16928.0,16927.0,0.32263761]
[1673038309363,0.78485036,16928.0,16927.0,0.02263761]
[1673038310143,1.37558736,16928.0,16927.0,0.02263761]
[1673038310896,2.01510274,16928.0,16927.0,0.02263761]
[1673038311668,2.60583974,16928.0,16927.0,0.02263761]
[1673038312181,3.21242574,16928.0,16927.0,0.02263761]
[1673038312738,3.21242574,16928.0,16927.0,1e-08]
[1673038312956,2.60583974,16928.0,16927.0,1e-08]
[1673038313210,2.59183974,16928.0,16927.0,1e-08]
[1673038313491,1.96632436,16928.0,16927.0,1e-08]
[1673038313738,1.96632436,16928.0,16927.0,0.97863224]
[1673038314057,1.96632436,16928.0,16927.0,0.67863224]
[1673038314243,1.96632436,16928.0,16927.0,0.97863224]
[1673038314494,1.96632436,16928.0,16927.0,1e-08]
[1673038315949,2.59990111,16928.0,16927.0,1e-08]
[1673038316476,3.20648711,16928.0,16927.0,1e-08]
[1673038316732,1.96632436,16928.0,16927.0,1e-08]
[1673038320061,2.57291036,16928.0,16927.0,1e-08]
[1673038320574,4.13701036,16928.0,16927.0,1e-08]
[1673038320837,4.12301036,16928.0,16927.0,1e-08]
[1673038321151,4.16601036,16928.0,16927.0,1e-08]
[1673038321853,4.34245781,16928.0,16927.0,1e-08]
[1673038322630,4.29945781,16928.0,16927.0,1e-08]
[1673038322887,4.41545781,16928.0,16927.0,1e-08]
[1673038323100,4.68012899,16928.0,16927.0,1e-08]
[1673038323620,5.999e-05,16926.0,16924.0,0.56602884]
[1673038323868,0.56812419,16925.0,16924.0,0.56602884]
[1673038324122,1.31536755,16925.0,16924.0,0.56102884]
[1673038324367,1.31536755,16925.0,16924.0,0.01763761]
[1673038324613,1.31536755,16925.0,16924.0,0.70041487]
[1673038325377,0.77085036,16925.0,16924.0,1.30700087]
[1673038325627,0.77085036,16925.0,16924.0,1.28200087]
[1673038325878,0.77085036,16925.0,16924.0,1.58200087]
[1673038326374,0.78585036,16925.0,16924.0,1.58200087]
[1673038326633,0.78585036,16925.0,16924.0,0.3]
[1673038327400,0.78585036,16925.0,16924.0,0.91339905]
[1673038328166,0.78585036,16925.0,16924.0,1.51998505]
[1673038328942,0.78585036,16925.0,16924.0,0.91339905]
[1673038329249,0.78513948,16925.0,16924.0,1.51998505]
[1673038330432,0.78513948,16925.0,16924.0,0.91339905]
[1673038331449,0.015,16925.0,16924.0,0.90670042]
[1673038331768,0.015,16925.0,16924.0,1.53321576]
[1673038331959,0.015,16925.0,16924.0,2.76575148]
[1673038332484,0.015,16925.0,16924.0,2.76563706]
[1673038332712,0.77106035,16926.0,16924.0,2.76563706]
[1673038333014,0.77106035,16926.0,16925.0,0.824795]
[1673038333238,0.77106035,16926.0,16925.0,0.3]
[1673038333513,0.77106035,16926.0,16925.0,0.33563934]
[1673038334026,1.48190737,16926.0,16925.0,0.33563934]
[1673038334286,1.48190737,16926.0,16925.0,0.3]
[1673038334550,1.48175737,16926.0,16924.0,0.64165972]
[1673038334789,1.15383755,16925.0,16924.0,0.64165972]
[1673038335050,1.15383755,16925.0,16924.0,0.94165972]
[1673038335844,1.15383755,16925.0,16924.0,1.54824572]
[1673038336363,1.16883755,16925.0,16924.0,1.54824572]
[1673038336620,1.16883755,16925.0,16924.0,2.13912172]
[1673038337106,0.39798719,16925.0,16924.0,2.13912172]
[1673038337617,1.16883755,16925.0,16924.0,2.12812172]
[1673038337878,0.39798719,16925.0,16924.0,1.52153572]
[1673038338123,1.16883755,16925.0,16924.0,2.12812172]
[1673038338369,0.38298719,16925.0,16924.0,9.62812172]
[1673038338871,0.39898719,16925.0,16924.0,9.62812172]
[1673038339399,0.39898719,16925.0,16924.0,2.12812172]
[1673038339913,0.39898719,16925.0,16924.0,9.62812172]
[1673038340202,0.016,16925.0,16924.0,10.21899772]
[1673038340423,0.016,16925.0,16924.0,9.588338]
[1673038340680,0.016,16925.0,16924.0,10.10984237]
[1673038340931,0.016,16925.0,16924.0,2.60995135]
[1673038341437,0.016,16925.0,16924.0,2.92660863]
[1673038341931,0.016,16925.0,16924.0,2.56545744]
[1673038342428,0.76585772,16927.0,16924.0,2.56545744]
[1673038342684,0.77085036,16927.0,16925.0,0.824795]
[1673038342929,1.42852911,16928.0,16926.0,0.606511]
[1673038343198,1.8115163,16928.0,16926.0,1.181614]
[1673038343447,1.8115163,16928.0,16927.0,0.3]
[1673038343727,1.8115163,16928.0,16927.0,0.890772]
[1673038345002,1.9175163,16928.0,16927.0,0.892772]
[1673038345244,1.25983755,16928.0,16927.0,1.55016687]
[1673038352241,1.25483755,16928.0,16927.0,1.55016687]
[1673038352748,1.25483755,16928.0,16927.0,0.592772]
[1673038352996,1.43057004,16928.0,16927.0,0.592772]
[1673038353243,2.05067159,16928.0,16927.0,0.592772]
[1673038355914,2.31534277,16928.0,16927.0,0.592772]
[1673038356938,2.05067159,16928.0,16927.0,0.592772]
[1673038358249,2.05067159,16928.0,16927.0,0.892772]
[1673038359010,1.8749391,16928.0,16927.0,0.892772]
[1673038360582,2.05067159,16928.0,16927.0,0.592772]
[1673038363192,1.25483755,16928.0,16927.0,0.89288096]
[1673038363460,1.25483755,16928.0,16927.0,2.74466989]
[1673038363770,0.48398719,16928.0,16927.0,2.74456093]
[1673038364018,0.48398719,16928.0,16927.0,2.13797493]
[1673038364807,0.47898719,16928.0,16927.0,2.74456093]
[1673038365070,1.24983755,16928.0,16927.0,2.74456093]
[1673038365329,0.106,16928.0,16927.0,3.05618085]
[1673038365592,0.106,16928.0,16927.0,2.91574942]
[1673038365849,0.106,16928.0,16927.0,3.0931997]
[1673038366113,0.106,16928.0,16927.0,3.70665415]
[1673038366381,0.77085036,16930.0,16927.0,3.53248329]
[1673038366630,0.55779866,16930.0,16929.0,0.1747]
[1673038366884,0.37298719,16929.0,16928.0,1.065428]
[1673038367165,0.37298719,16929.0,16928.0,2.246902]
[1673038367867,0.37298719,16929.0,16928.0,2.853488]
[1673038368123,0.37298719,16929.0,16928.0,2.878488]
[1673038368124,0.007,16929.0,16928.0,2.878488]
[1673038368375,0.007,16929.0,16928.0,3.49493854]
[1673038368626,0.007,16929.0,16928.0,4.19493854]
[1673038368880,0.007,16929.0,16928.0,4.3711094]
[1673038369182,0.007,16929.0,16928.0,4.54900554]
[1673038369439,0.007,16929.0,16928.0,5.23853845]
[1673038369695,0.007,16929.0,16928.0,5.23952509]
[1673038369946,0.007,16929.0,16928.0,4.62087444]
[1673038370468,0.007,16929.0,16928.0,4.90189552]
[1673038371792,0.37998719,16929.0,16928.0,4.33456702]
[1673038372041,0.37998719,16929.0,16928.0,3.9472549]
[1673038373067,0.007,16929.0,16928.0,3.9472549]
[1673038373281,0.37998719,16929.0,16928.0,3.9472549]
[1673038373830,0.37998719,16929.0,16928.0,4.2472549]
[1673038374832,1.83714715,16929.0,16928.0,3.103788]
[1673038375101,0.77785036,16929.0,16928.0,1.906474]
[1673038375355,0.007,16929.0,16928.0,2.7757313]
[1673038375615,0.007,16929.0,16928.0,3.3823173]
[1673038375863,0.007,16929.0,16928.0,2.6823173]
[1673038376371,0.007,16929.0,16928.0,2.9823173]
[1673038376878,0.007,16929.0,16928.0,3.15929008]
[1673038377133,0.007,16929.0,16928.0,3.85929008]
[1673038377387,0.007,16929.0,16928.0,3.79968762]
[1673038378181,0.007,16929.0,16928.0,3.68308762]
[1673038379198,0.37998719,16929.0,16928.0,3.68308762]
[1673038380462,0.37998719,16929.0,16928.0,3.16502022]
[1673038380722,0.37998719,16929.0,16928.0,3.76297906]
[1673038382249,0.007,16929.0,16928.0,2.94072022]
[1673038382505,0.007,16929.0,16928.0,3.62051649]
[1673038382761,0.37998719,16929.0,16928.0,3.44175381]
[1673038383013,0.007,16929.0,16928.0,3.49437747]
[1673038383286,0.007,16929.0,16928.0,3.24002496]
[1673038383554,0.007,16929.0,16928.0,3.48300587]
[1673038386115,0.007,16929.0,16928.0,3.53534819]
[1673038386387,0.007,16929.0,16928.0,3.50031649]
[1673038387140,0.37998719,16929.0,16928.0,3.32115945]
[1673038387387,0.37998719,16929.0,16928.0,3.32334371]
[1673038387647,0.37998719,16929.0,16928.0,2.88995771]
[1673038387895,0.37998719,16929.0,16928.0,3.49654371]
[1673038389659,0.37998719,16929.0,16928.0,3.74435945]
[1673038389914,0.37998719,16929.0,16928.0,3.52712932]
[1673038392175,0.37998719,16929.0,16928.0,3.00356675]
[1673038392429,0.37998719,16929.0,16928.0,3.88851285]
[1673038392963,0.007,16929.0,16928.0,3.35343953]
[1673038393215,0.007,16929.0,16928.0,3.61889483]
[1673038393477,0.007,16929.0,16928.0,4.21692255]
[1673038394001,0.35498719,16930.0,16928.0,4.21692255]
[1673038394226,0.35498719,16930.0,16929.0,1.00136643]
[1673038394485,0.35498719,16930.0,16929.0,2.88277043]
[1673038395479,0.39098719,16930.0,16929.0,3.06117043]
[1673038396230,0.39098719,16930.0,16929.0,3.66777328]
[1673038396717,0.39098719,16930.0,16929.0,3.91777328]
[1673038397222,0.39098719,16930.0,16929.0,3.74437328]
[1673038397471,0.39098719,16930.0,16929.0,3.56751885]
[1673038397723,0.39098719,16930.0,16929.0,3.26751885]
[1673038397982,1.15858745,16930.0,16929.0,3.26751885]
[1673038399279,1.15858745,16930.0,16929.0,3.56751885]
[1673038399528,1.15858745,16930.0,16929.0,2.86751885]
[1673038399779,0.39098719,16930.0,16929.0,2.86751885]
[1673038400279,0.39098719,16930.0,16929.0,2.86762286]
[1673038401020,0.39098719,16930.0,16929.0,3.56762286]
[1673038401268,0.39098719,16930.0,16929.0,2.960916]
[1673038401524,1.15858745,16930.0,16929.0,2.960916]
[1673038402327,1.15858745,16930.0,16929.0,2.260916]
[1673038403327,1.15858745,16930.0,16929.0,2.26310013]
[1673038403632,1.15858745,16930.0,16929.0,2.260916]
[1673038404153,1.79398908,16930.0,16929.0,1.736404]
[1673038406174,1.79398908,16930.0,16929.0,1.73858813]
[1673038406425,1.79398908,16930.0,16929.0,1.736404]
[1673038407178,1.79398908,16930.0,16929.0,2.34299]
[1673038407432,1.79398908,16930.0,16929.0,2.34517413]
[1673038407944,1.96972157,16930.0,16929.0,1.736404]
[1673038408438,1.79398908,16930.0,16929.0,1.736404]
[1673038409706,1.79398908,16930.0,16929.0,0.845702]
[1673038409952,1.96972157,16930.0,16929.0,0.845702]
[1673038410216,1.79398908,16930.0,16929.0,0.845702]
[1673038410460,1.96972157,16930.0,16929.0,0.845702]
[1673038410956,2.57630757,16930.0,16929.0,0.255]
[1673038412467,1.79398908,16930.0,16929.0,0.255]
[1673038412724,1.79398908,16930.0,16929.0,0.555]
[1673038413245,1.79398908,16930.0,16929.0,1.145702]
[1673038414258,2.40057508,16930.0,16929.0,1.145702]
[1673038414510,2.40057508,16930.0,16929.0,0.145702]
[1673038416286,1.76517345,16930.0,16929.0,0.145702]
[1673038416549,1.15858745,16930.0,16929.0,0.445702]
[1673038417603,1.15858745,16930.0,16929.0,0.99092409]
[1673038418100,1.15858745,16930.0,16929.0,1.58162609]
[1673038418101,0.39098719,16930.0,16929.0,1.58162609]
[1673038418671,0.39098719,16930.0,16929.0,1.75848052]
[1673038418916,0.39098719,16930.0,16929.0,2.36506652]
[1673038419422,0.39098719,16930.0,16929.0,2.18821209]
[1673038420458,1.15702545,16930.0,16929.0,1.58162609]
[1673038421730,0.39098719,16930.0,16929.0,1.21325843]
[1673038421994,0.39098719,16930.0,16929.0,2.70154238]
[1673038422750,0.39098719,16930.0,16929.0,2.43608708]
[1673038423816,0.39098719,16930.0,16929.0,1.82950108]
[1673038424320,0.39098719,16930.0,16929.0,1.65264665]
[1673038424593,1.15702545,16930.0,16929.0,1.65264665]
[1673038426875,1.15702545,16930.0,16929.0,1.036404]
[1673038427410,1.15702545,16930.0,16929.0,1.64299]
[1673038428162,1.15702545,16930.0,16929.0,1.036404]
[1673038429179,1.15702545,16930.0,16929.0,1.64299]
[1673038430420,0.39098719,16930.0,16929.0,1.64299]
[1673038430674,0.39098719,16930.0,16929.0,2.18846408]
[1673038431436,1.15702545,16930.0,16929.0,2.18835982]
[1673038431931,1.15702545,16930.0,16929.0,2.10624682]
[1673038432198,1.15702545,16930.0,16929.0,1.58177382]
[1673038434470,2.43974106,16930.0,16929.0,0.736404]
[1673038434728,3.09506089,16930.0,16929.0,0.145702]
[1673038434990,3.35973207,16930.0,16929.0,0.145702]
[1673038435253,2.78937355,16930.0,16929.0,0.145702]
[1673038435509,2.78937355,16930.0,16928.0,0.590706]
[1673038435762,0.76603826,16929.0,16928.0,0.590706]
[1673038436270,0.76603826,16929.0,16928.0,0.890706]
[1673038436581,0.76603826,16929.0,16928.0,1.481443]
[1673038437040,0.76603826,16929.0,16928.0,2.12874848]
[1673038437041,0.77303826,16929.0,16928.0,2.12874848]
[1673038437287,0.77303826,16929.0,16928.0,2.30560291]
[1673038437547,0.007,16929.0,16928.0,2.30560291]
[1673038438048,0.007,16929.0,16928.0,2.30748527]
[1673038438299,0.00689142,16929.0,16928.0,2.30549864]
[1673038438548,0.77292968,16929.0,16928.0,2.57095394]
[1673038439045,0.00689142,16929.0,16928.0,3.17753994]
[1673038439306,0.00689142,16929.0,16928.0,3.17952657]
[1673038440806,0.00689142,16929.0,16928.0,3.35586749]
[1673038442573,0.00689142,16929.0,16928.0,4.05388086]
[1673038443091,0.00689142,16929.0,16928.0,3.87789022]
[1673038443631,0.01689142,16929.0,16928.0,3.8780886]
[1673038444209,0.01689142,16929.0,16928.0,4.05388086]
[1673038444384,0.01689142,16929.0,16928.0,4.23108306]
[1673038444647,0.01689142,16929.0,16928.0,4.05388086]
[1673038444906,0.01689142,16929.0,16928.0,4.23108298]
[1673038445429,0.01689142,16929.0,16928.0,4.05407924]
[1673038446218,0.01689142,16929.0,16928.0,3.87788831]
[1673038446762,0.01689142,16929.0,16928.0,3.17978553]
[1673038447023,0.78292968,16929.0,16928.0,3.17788831]
[1673038447281,0.78292968,16929.0,16928.0,2.91243301]
[1673038447826,0.78292968,16929.0,16928.0,2.12864421]
[1673038448124,0.78292968,16929.0,16928.0,1.508443]
[1673038448391,0.78292968,16929.0,16928.0,1.208443]
[1673038448644,0.78292968,16929.0,16928.0,0.027]
[1673038448645,2.06878003,16929.0,16928.0,0.027]
[1673038448905,2.42155908,16929.0,16928.0,0.027]
[1673038449167,2.06878003,16929.0,16928.0,0.027]
[1673038449687,1.80410885,16929.0,16928.0,0.027]
[1673038450481,2.67536603,16929.0,16928.0,0.027]
[1673038450731,1.80410885,16929.0,16928.0,0.027]
[1673038451230,1.628131,16929.0,16928.0,0.027]
[1673038451735,1.80410885,16929.0,16928.0,0.027]
[1673038452045,2.41069485,16929.0,16928.0,0.027]
[1673038453234,1.80410885,16929.0,16928.0,0.027]
[1673038453488,0.382229,16927.0,16926.0,1.43897348]
[1673038453750,0.382229,16927.0,16926.0,2.02978048]
[1673038453995,0.73721619,16927.0,16926.0,2.02978048]
[1673038454232,0.73721619,16927.0,16926.0,2.78821]
[1673038454477,0.73721619,16927.0,16926.0,2.088168]
[1673038454742,0.73721619,16927.0,16926.0,2.5308261]
[1673038454998,0.75121619,16927.0,16926.0,2.5348261]
[1673038455283,0.75121619,16927.0,16926.0,3.23436184]
[1673038455508,0.396229,16927.0,16926.0,10.9158877]
[1673038455782,0.396229,16927.0,16926.0,11.09172842]
[1673038456001,0.382229,16927.0,16926.0,11.6118863]
[1673038456254,0.397229,16927.0,16926.0,11.6158863]
[1673038456517,0.382229,16927.0,16926.0,11.6118863]
[1673038457021,0.382229,16927.0,16926.0,12.05332724]
[1673038457259,0.396229,16927.0,16926.0,12.05732724]
[1673038457517,0.396229,16927.0,16926.0,11.79172842]
[1673038458525,0.396229,16927.0,16926.0,11.79401647]
[1673038462563,0.75121619,16927.0,16926.0,11.61591143]
[1673038462828,0.75121619,16927.0,16926.0,4.11591143]
[1673038463081,0.75121619,16927.0,16926.0,3.93980371]
[1673038463575,0.73721619,16927.0,16926.0,3.93580371]
[1673038463838,0.75221619,16927.0,16926.0,3.90416437]
[1673038464091,0.75221619,16927.0,16926.0,3.63853992]
[1673038464344,0.75221619,16927.0,16926.0,2.93853992]
[1673038464619,1.52032677,16927.0,16926.0,2.93853992]
[1673038464846,0.75221619,16927.0,16926.0,3.20416437]
[1673038465107,0.75221619,16927.0,16926.0,3.20427877]
[1673038466336,0.75221619,16927.0,16926.0,3.20416437]
[1673038466597,0.75221619,16927.0,16926.0,3.20623504]
[1673038466809,0.75221619,16927.0,16926.0,2.93853992]
[1673038467076,0.75221619,16927.0,16926.0,3.20416437]
[1673038467322,0.75221619,16927.0,16926.0,2.93853992]
[1673038467575,1.52032677,16927.0,16926.0,2.93853992]
[1673038469292,1.52032677,16927.0,16926.0,2.092168]
[1673038469546,1.52032677,16927.0,16926.0,1.485582]
[1673038470038,1.52032677,16927.0,16926.0,2.092168]
[1673038470290,1.50532677,16927.0,16926.0,2.088168]
[1673038470558,3.18023069,16927.0,16926.0,0.004]
[1673038470834,2.08415,16926.0,16924.0,0.76794363]
[1673038471096,2.23572059,16925.0,16923.0,1.33337038]
[1673038471360,0.781237,16924.0,16923.0,1.33337038]
[1673038471619,1.52236615,16924.0,16923.0,1.33337038]
[1673038471876,0.1771,16925.0,16923.0,1.20442861]
[1673038472162,0.35498719,16924.0,16923.0,2.08483959]
[1673038472391,0.35498719,16924.0,16923.0,1.38151624]
[1673038472655,0.36898719,16924.0,16923.0,1.38151624]
[1673038472914,0.35498719,16924.0,16923.0,1.68151624]
[1673038473421,0.35498719,16924.0,16923.0,2.31978254]
[1673038473670,1.1018196,16924.0,16923.0,2.31978254]
[1673038473922,1.1178196,16924.0,16923.0,2.31978254]
[1673038474762,0.37098719,16924.0,16923.0,2.76151471]
[1673038474938,0.016,16924.0,16923.0,3.05958121]
[1673038475189,0.016,16924.0,16923.0,3.0955415]
[1673038475463,0.004,16925.0,16924.0,0.4]
[1673038475719,0.004,16925.0,16924.0,2.72619075]
[1673038475971,0.004,16925.0,16924.0,2.84128509]
[1673038476520,0.004,16925.0,16924.0,3.54128509]
[1673038476779,0.004,16925.0,16924.0,4.18986548]
[1673038477035,0.004,16925.0,16924.0,4.5576588]
[1673038477036,0.011,16925.0,16924.0,4.5576588]
[1673038477295,0.011,16925.0,16924.0,4.55765962]
[1673038477551,0.011,16925.0,16924.0,4.3830881]
[1673038477924,0.36598719,16925.0,16924.0,4.20620922]
[1673038478195,0.36598719,16925.0,16924.0,3.51136536]
[1673038478442,0.36598719,16925.0,16924.0,3.24600049]
[1673038479000,0.36598719,16925.0,16924.0,3.51136536]
[1673038479253,0.36598719,16925.0,16924.0,3.24600049]
[1673038479776,0.36598719,16925.0,16924.0,3.54600049]
[1673038480540,0.36598719,16925.0,16924.0,3.11136536]
[1673038480809,0.011,16925.0,16924.0,3.24758509]
[1673038481056,0.011,16925.0,16924.0,2.41384134]
[1673038482316,0.011,16925.0,16924.0,3.11384134]
[1673038483571,0.011,16925.0,16924.0,10.61384134]
[1673038484652,0.011,16925.0,16924.0,3.11384134]
[1673038485216,0.011,16925.0,16924.0,4.10337676]
[1673038485723,0.36598719,16925.0,16924.0,4.10337676]
[1673038485994,0.36598719,16925.0,16924.0,4.45730342]
[1673038486284,0.36598719,16925.0,16924.0,3.58708802]
[1673038486534,1.11221569,16925.0,16924.0,3.41013409]
[1673038487821,1.11221569,16925.0,16924.0,3.44468085]
[1673038488077,1.11282297,16925.0,16924.0,3.44468085]
[1673038488336,0.36598719,16925.0,16924.0,3.71002273]
[1673038488583,0.36598719,16925.0,16924.0,3.01002273]
[1673038489094,0.36598719,16925.0,16924.0,3.36427031]
[1673038489346,0.36598719,16925.0,16924.0,2.83952541]
[1673038489598,0.36598719,16925.0,16924.0,3.03697666]
[1673038490115,0.36598719,16925.0,16924.0,3.73729758]
[1673038490355,0.36598719,16925.0,16924.0,3.73697666]
[1673038490582,0.36598719,16925.0,16924.0,3.21222666]
[1673038491081,0.36598719,16925.0,16924.0,3.73697666]
[1673038491333,0.36598719,16925.0,16924.0,3.56002802]
[1673038491586,1.11091048,16925.0,16924.0,1.04564064]
[1673038491838,1.67138956,16925.0,16924.0,1.04564064]
[1673038492093,2.27802656,16925.0,16924.0,1.04564064]
[1673038492346,2.39452656,16925.0,16924.0,1.04564064]
[1673038493091,2.39452656,16925.0,16924.0,0.45476464]
[1673038494856,1.67138956,16925.0,16924.0,0.75476464]
[1673038495872,1.67138956,16925.0,16924.0,1.34564064]
[1673038496389,0.92646627,16925.0,16924.0,1.34564064]
[1673038497127,0.36598719,16925.0,16924.0,1.34564064]
[1673038497637,1.11114285,16925.0,16924.0,1.89269351]
[1673038497881,1.74950841,16925.0,16924.0,1.04564064]
[1673038498128,1.00435275,16925.0,16924.0,1.04564064]
[1673038498374,0.36598719,16925.0,16924.0,1.34564064]
[1673038498620,1.11111577,16925.0,16924.0,1.34564064]
[1673038500641,0.36598719,16925.0,16924.0,1.87071156]
[1673038500894,0.36598719,16925.0,16924.0,2.91853033]
[1673038501675,0.36598719,16925.0,16924.0,10.59547897]
[1673038501920,0.36598719,16925.0,16924.0,10.0257308]
[1673038502177,0.011,16925.0,16924.0,10.90260686]
[1673038502423,0.011,16925.0,16924.0,10.6640802]
[1673038503184,0.011,16925.0,16924.0,10.2440802]
[1673038503442,0.011,16925.0,16924.0,9.8017509]
[1673038503705,0.011,16925.0,16924.0,2.83147503]
[1673038503993,0.011,16925.0,16924.0,2.5430509]
[1673038504714,0.011,16925.0,16924.0,3.45959474]
[1673038504715,0.004,16925.0,16924.0,3.45959474]
[1673038504988,0.00015,16927.0,16924.0,2.5750509]
[1673038505311,0.00015,16927.0,16926.0,0.67511529]
[1673038505494,0.36498719,16929.0,16926.0,1.49979929]
[1673038505756,0.36498719,16929.0,16928.0,0.17683718]
[1673038506006,0.36498719,16929.0,16928.0,2.47366218]
[1673038506267,0.36498719,16929.0,16928.0,2.77366218]
[1673038506505,0.36498719,16929.0,16928.0,3.03891795]
[1673038506761,0.36498719,16929.0,16928.0,3.47366218]
[1673038507012,0.36498719,16929.0,16928.0,4.06322376]
[1673038507264,0.49998719,16929.0,16928.0,4.06322376]
[1673038508043,0.49998719,16929.0,16928.0,4.32847953]
[1673038508319,0.49998719,16929.0,16928.0,4.06322376]
[1673038508574,0.49927623,16929.0,16928.0,4.06322376]
[1673038509140,0.49927623,16929.0,16928.0,4.06354462]
[1673038511495,0.49927623,16929.0,16928.0,3.89587815]
[1673038511765,0.49927623,16929.0,16928.0,4.18901533]
[1673038512014,0.49927623,16929.0,16928.0,4.36587485]
[1673038512261,0.14428904,16929.0,16928.0,4.36587485]
[1673038512794,0.00928904,16929.0,16928.0,4.36087485]
[1673038513009,0.01128904,16929.0,16928.0,4.36587485]
[1673038513260,0.35751581,16931.0,16928.0,4.97997485]
[1673038513516,0.00252862,16931.0,16930.0,0.73458131]
[1673038513770,0.00252862,16931.0,16930.0,4.79838898]
[1673038514036,0.00252862,16931.0,16930.0,4.63029331]
[1673038514534,0.00452862,16931.0,16930.0,4.45869886]
[1673038514781,0.00452862,16931.0,16930.0,5.07218253]
[1673038515037,0.00452862,16931.0,16930.0,4.19380687]
[1673038515290,0.00452862,16931.0,16930.0,4.7660031]
[1673038515538,0.35951581,16931.0,16930.0,4.58940823]
[1673038515794,0.5971937,16931.0,16930.0,4.16440823]
[1673038516045,1.64946882,16931.0,16930.0,3.592212]
[1673038516298,0.87781482,16931.0,16930.0,2.477001]
[1673038517073,0.87781482,16931.0,16930.0,3.001542]
[1673038517318,0.87781482,16931.0,16930.0,3.00186281]
[1673038517571,0.35951581,16931.0,16930.0,3.00186281]
[1673038517828,0.35951581,16931.0,16930.0,3.30186281]
[1673038518826,0.00452862,16931.0,16930.0,3.82237088]
[1673038519575,0.00452862,16931.0,16930.0,3.85801022]
[1673038523088,0.00452862,16931.0,16930.0,3.85768941]
[1673038523604,1.87720262,16931.0,16930.0,2.477001]
[1673038523862,1.63952473,16931.0,16930.0,1.886334]
[1673038524129,1.99451192,16931.0,16930.0,1.886334]
[1673038524389,2.60114892,16931.0,16930.0,1.886334]
[1673038524619,1.99451192,16931.0,16930.0,1.186334]
[1673038525667,1.99451192,16931.0,16930.0,0.595667]
[1673038525668,2.01493681,16931.0,16930.0,0.595667]
[1673038525896,2.01493681,16931.0,16930.0,0.005]
[1673038526145,2.01493681,16931.0,16929.0,0.590674]
[1673038526397,1.493591,16930.0,16928.0,0.590706]
[1673038526660,0.766654,16929.0,16928.0,0.590706]
[1673038526913,1.12164119,16929.0,16928.0,0.590706]
[1673038527186,1.23754119,16929.0,16927.0,0.590748]
[1673038527451,1.55440225,16928.0,16926.0,0.590773]
[1673038527706,1.73327819,16927.0,16926.0,0.590773]
[1673038527992,1.12664119,16927.0,16926.0,1.22466388]
[1673038528570,0.35498719,16927.0,16926.0,1.52466388]
[1673038529356,0.35498719,16927.0,16926.0,2.11547088]
[1673038529637,0.36798719,16927.0,16926.0,2.69214988]
[1673038530140,0.36798719,16927.0,16926.0,2.058259]
[1673038530395,0.36798719,16927.0,16926.0,1.53358]
[1673038530641,1.13964119,16927.0,16926.0,1.53358]
[1673038530916,1.13964119,16927.0,16926.0,2.23358]
[1673038531423,1.13464119,16927.0,16926.0,2.23358]
[1673038531983,0.36298719,16927.0,16926.0,2.7393441]
[1673038532269,0.38654963,16927.0,16926.0,2.7393441]
[1673038534042,0.38654963,16927.0,16926.0,3.2640241]
[1673038535547,0.38654963,16927.0,16926.0,3.264345]
[1673038536583,0.03656244,16927.0,16926.0,2.97081511]
[1673038536837,0.03656244,16927.0,16926.0,3.2357071]
[1673038537081,0.03656244,16927.0,16926.0,3.6874658]
[1673038537336,0.03656244,16927.0,16926.0,3.2357071]
[1673038537586,0.03656244,16927.0,16926.0,3.20006776]
[1673038538078,0.03656244,16927.0,16926.0,3.88506827]
[1673038538600,0.03656244,16927.0,16926.0,3.62017628]
[1673038538854,0.03656244,16927.0,16926.0,3.88506827]
[1673038540862,0.03656244,16927.0,16926.0,3.58909413]
[1673038541392,0.03656244,16927.0,16926.0,4.05478998]
[1673038542764,0.03656244,16927.0,16926.0,3.37666221]
[1673038543523,0.03656244,16927.0,16926.0,3.81814886]
[1673038543781,0.03656244,16927.0,16926.0,4.12223619]
[1673038544025,0.03656244,16927.0,16926.0,3.94596043]
[1673038544275,0.03656244,16927.0,16926.0,11.88744708]
[1673038544554,0.03656244,16927.0,16926.0,11.44596043]
[1673038545078,0.03656244,16927.0,16926.0,11.62277033]
[1673038545342,0.03656244,16927.0,16926.0,3.46958101]
[1673038546640,0.03656244,16927.0,16926.0,3.76958101]
[1673038546899,0.03656244,16927.0,16926.0,4.12277033]
[1673038547147,0.03656244,16927.0,16926.0,3.94596043]
[1673038548420,0.03656244,16927.0,16926.0,3.76957749]
[1673038549458,0.03656244,16927.0,16926.0,11.62276681]
[1673038549712,0.03656244,16927.0,16926.0,11.2695747]
[1673038550493,0.03656244,16927.0,16926.0,3.7692538]
[1673038550749,0.03656244,16927.0,16926.0,2.97936291]
[1673038551245,0.03656244,16927.0,16926.0,3.50404291]
[1673038551750,0.38654963,16927.0,16926.0,3.50404291]
[1673038552004,0.38654963,16927.0,16926.0,3.50436381]
[1673038553587,0.38645664,16927.0,16926.0,3.7695747]
[1673038555106,0.38645664,16927.0,16926.0,3.94596043]
[1673038556901,0.38645664,16927.0,16926.0,3.42128043]
[1673038558897,0.38645664,16927.0,16926.0,3.86276708]
[1673038559162,0.38645664,16927.0,16926.0,3.94563953]
[1673038559419,0.38645664,16927.0,16926.0,3.42095953]
[1673038559674,0.38645664,16927.0,16926.0,3.76940559]
[1673038560148,0.38645664,16927.0,16926.0,4.12259586]
[1673038560398,0.38645664,16927.0,16926.0,3.76940654]
[1673038560650,0.38645664,16927.0,16926.0,3.42095953]
[1673038560902,0.38645664,16927.0,16926.0,3.59723529]
[1673038561152,0.38645664,16927.0,16926.0,4.12191529]
[1673038561682,0.38645664,16927.0,16926.0,3.76948025]
[1673038561931,0.38645664,16927.0,16926.0,4.1235169]
[1673038562456,0.38645664,16927.0,16926.0,3.76948025]
[1673038562742,0.38645664,16927.0,16926.0,3.3279936]
[1673038562974,0.38645664,16927.0,16926.0,3.77090076]
[1673038563772,0.38645664,16927.0,16926.0,3.3279936]
[1673038566511,0.38645664,16927.0,16926.0,3.35059743]
[1673038566761,0.38645664,16927.0,16926.0,3.98499681]
[1673038567291,0.38645664,16927.0,16926.0,3.98424253]
[1673038567539,0.38645664,16927.0,16926.0,2.86797938]
[1673038568547,1.6801212,16927.0,16926.0,2.73099824]
[1673038568795,1.6801212,16927.0,16926.0,2.37659822]